Cogmind - Beta 11.1 @@@ ROGUE MODE // 2022.08.29 @ 22:52:26 Player: HeartGrenade Result: Destroyed by G-67 Veteran with Plasma Rifle Performance ------------- Evolutions (7) 3500 Regions Visited (27) 5400 Robots Destroyed (247) 1235 Value Destroyed (11298) 11298 Prototype IDs (62) 1240 Alien Tech Used (1) 200 Bonus (6774) 6774 TOTAL SCORE: 29647 Bonus ------- High Alert Combat Kills 948 Follower Combat Kills 1468 Met Data Miner 300 Met Imprinter 300 Met Warlord at Base 500 MAIN.C Attacked Warlord 500 A7 Reached Mainframe 300 Scanned by Researcher 500 Met Sigix 2000 Friendly Fire -42 Cogmind --------- Core Integrity 0/1300 Matter 100/300 Energy 98/100 System Corruption 91% Temperature Cool (0) Movement Core (50) Location -3/Quarantine Parts ------- > --- POWER (2) -------- (None) > --- PROPULSION (5) --- (None) > --- UTILITY (11) ----- (None) > --- WEAPON (3) ------- (None) > --- INVENTORY (5) ---- Micro Antimatter Reactor Quantum Reactor Advanced Energy Well (500) Improved Terrain Scanner Improved Remote Force Field Peak State ------------ > --- POWER ------------ Vortex Chain Reactor > --- PROPULSION ------- Medium Treads Centrium Heavy Treads Centrium Heavy Treads > --- UTILITY ---------- Advanced Cooling System Huge Storage Unit Improved Sensor Array Improved Signal Interpreter Experimental Signal Interpreter Advanced Terrain Scan Processor Improved Transmission Jammer Centrium Medium Armor Plating Centrium Medium Armor Plating Improved Focal Shield > --- WEAPON ----------- Phase Gun Railgun Railgun > --- INVENTORY -------- Reinforced Fission Core Light Quantum Reactor Medium Treads Armored Wheel High-capacity Storage Unit Energy Well Improved Hacking Suite Improved Hacking Suite Improved System Shield Improved System Shield Authchip [Armor] Compact HERF Cannon Advanced KE Penetrator Rocket Launcher Thermoblaster RU-N14's Throwing Claymores RU-N14's Throwing Claymores RU-N14's Throwing Claymores Power Maul [Rating: 146] Favorites ----------- Power Cooled Deuterium Engine Engine Cooled Deuterium Engine Power Core Neutrino Core Reactor Vortex Chain Reactor Propulsion Light Treads Treads Light Treads Leg Flexi-carbon Leg Wheel Armored Huge Wheel Hover Unit Improved Antigrav System Utility High-capacity Storage Unit Device Improved Sensor Array Storage High-capacity Storage Unit Processor Improved Signal Interpreter Hackware Hacking Suite Protection Hardened Heavy Armor Plating Artifact Phase Armor Weapon Thermic Laser Energy Gun Thermic Laser Energy Cannon Nova Cannon Ballistic Gun Improved Assault Rifle Launcher Rocket Launcher Special Weapon RU-N14's Throwing Claymores Impact Weapon Makeshift Hammer Build | -11 -10 -9 -9 -9 -8 -8 -7 -7 -7 -7 -6 -6 -6 -6 -6 -5 -5 -5 -5 -5 -4 -4 -4 -4 -4 -3 -3 ------- Run | Scr Mat Mat Min Exi Min Mat Fac Low Low Zio Pro Fac Low Low Dat Pro Fac Upp Upp War Pro Fac Ext Cet Arc Res Qua Slots Evolved 14 | . . 2 . . . 2 2 . . . . 2 . . . . 2 . . . . 2 . . . 2 . Power 1 | . . . . . . . . . . . . 1 . . . . . . . . . . . . . . . Propulsion 3 | . . 1 . . . 1 . . . . . . . . . . . . . . . . . . . 1 . Utility 9 | . . 1 . . . 1 2 . . . . . . . . . 2 . . . . 2 . . . 1 . Weapon 1 | . . . . . . . . . . . . 1 . . . . . . . . . . . . . . . Parts Attached 298 | 6 4 15 3 4 1 21 10 10 5 2 14 23 5 10 3 9 10 2 1 11 3 24 19 9 7 42 25 Power 22 | 1 . 3 . . . 2 . . 1 . . 4 1 . . 1 1 . . 1 . 1 . . . 3 3 Engine 12 | 1 . 3 . . . 2 . . 1 . . 3 1 . . . 1 . . . . . . . . . . Core 3 | . . . . . . . . . . . . . . . . 1 . . . 1 . . . . . 1 . Reactor 7 | . . . . . . . . . . . . 1 . . . . . . . . . 1 . . . 2 3 Propulsion 59 | 2 1 6 . 3 1 4 2 2 1 1 1 5 . 2 . 2 1 . 1 1 . 4 5 1 1 8 4 Treads 33 | 2 1 6 . 3 1 4 2 1 . . . 2 . . . . . . . . . . 5 1 1 4 . Leg 12 | . . . . . . . . . 1 1 1 1 . 2 . 1 1 . . 1 . 2 . . . . 1 Wheel 13 | . . . . . . . . 1 . . . 2 . . . 1 . . 1 . . 2 . . . 4 2 Hover 1 | . . . . . . . . . . . . . . . . . . . . . . . . . . . 1 Flight . | . . . . . . . . . . . . . . . . . . . . . . . . . . . . Utility 104 | 1 3 2 1 1 . 6 4 2 . 1 2 6 1 3 . 3 4 1 . 5 2 13 9 5 4 14 11 Device 52 | . 2 . . . . 2 2 1 . . 1 4 . 2 . 2 3 1 . 4 1 9 6 3 2 6 1 Storage 7 | 1 1 . . 1 . . . . . . . . . . . . . . . . . . 1 . 1 . 2 Processor 7 | . . 1 . . . . 2 . . . . . . . . . . . . 1 . 1 . . . 2 . Hackware 8 | . . . . . . . . . . . . 1 . . . . . . . . . . . 1 . 6 . Protection 29 | . . 1 1 . . 4 . 1 . 1 1 1 1 1 . 1 1 . . . 1 3 2 1 1 . 7 Artifact 1 | . . . . . . . . . . . . . . . . . . . . . . . . . . . 1 Weapon 113 | 2 . 4 2 . . 9 4 6 3 . 11 8 3 5 3 3 4 1 . 4 1 6 5 3 2 17 7 Energy Gun 23 | 1 . 1 . . . 2 1 . 1 . 2 1 1 1 1 1 1 . . . . . 2 1 1 3 2 Energy Cannon 1 | . . . . . . . . . . . . . . . . . . . . . . . . . . . 1 Ballistic Gun 46 | 1 . 3 1 . . 5 2 3 1 . 2 5 2 2 2 1 1 1 . 1 1 3 2 . 1 6 . Ballistic Cannon . | . . . . . . . . . . . . . . . . . . . . . . . . . . . . Launcher 20 | . . . 1 . . 1 . 3 1 . 4 1 . . . . . . . 1 . 1 1 1 . 3 2 Special Weapon 11 | . . . . . . . . . . . 1 1 . 2 . 1 . . . . . . . 1 . 4 1 Impact Weapon 12 | . . . . . . 1 1 . . . 2 . . . . . 2 . . 2 . 2 . . . 1 1 Slashing Weapon . | . . . . . . . . . . . . . . . . . . . . . . . . . . . . Piercing Weapon . | . . . . . . . . . . . . . . . . . . . . . . . . . . . . Special Melee Weapon . | . . . . . . . . . . . . . . . . . . . . . . . . . . . . Unidentified Prototypes 16 | . . 2 . . . 4 . . . . 1 . . . . . . . . 2 . 1 . 2 . 2 2 Corrupted Parts 3 | . . . . . . . . . . . . . . . . . . . . . . . . 1 1 1 . System Corruption 20 | . . . . . . . . . . . . . . . . . . . . . . . . 7 3 10 . Parts Lost 96 | . . 3 . . . 2 1 2 1 . 3 10 . 2 . 2 2 . . . . 11 1 . 1 33 22 Power 13 | . . . . . . . . . 1 . . 2 . 1 . . 1 . . . . 2 . . . 4 2 Propulsion 24 | . . 2 . . . . 1 2 . . 3 3 . . . 1 . . . . . 1 1 . . 6 4 Utility 41 | . . . . . . 2 . . . . . 3 . . . 1 1 . . . . 5 . . 1 13 15 Weapon 18 | . . 1 . . . . . . . . . 2 . 1 . . . . . . . 3 . . . 10 1 Highest Loss Streak 17 | . . 1 . . . 1 1 2 1 . 2 5 . 2 . 2 2 . . . . 7 1 . 1 17 7 To Critical Strikes 2 | . . . . . . . . . . . . . . . . . . . . . . 2 . . . . . Average Slot Usage (%) 90 | . 93 98 100 100 100 99 100 99 100 100 84 85 92 92 75 92 87 88 88 87 88 77 82 82 80 72 73 Engine 6 | . 14 10 11 11 11 9 7 7 7 7 7 8 13 6 6 6 6 11 11 9 5 . . . . . . Reactor 1 | . . . . . . . . . . . . . . . . . . . . . . 1 5 5 5 3 7 Treads 14 | . 28 33 33 33 33 36 30 25 16 15 6 5 13 6 6 . . . . . . . 10 13 10 10 3 Leg 4 | . . . . . . . . . 6 7 . 5 . 12 13 14 11 11 11 11 11 9 . . . . 2 Wheel 3 | . . . . . . . . 4 7 7 7 5 6 6 6 6 5 5 5 5 5 4 1 . . 1 3 Device 10 | . 8 4 . . . 8 15 14 15 15 14 11 6 6 6 9 6 11 11 10 10 13 20 13 20 20 3 Storage 6 | . 14 11 11 11 11 9 7 7 7 7 7 6 6 6 6 6 5 5 5 5 5 5 5 5 5 3 2 Processor 12 | . . 10 11 11 11 9 15 15 15 15 15 13 13 13 13 13 11 11 11 11 11 15 15 15 10 10 3 Hackware 2 | . . . . . . . . . . . . 2 6 6 6 6 5 5 5 5 5 3 . 1 . 1 19 Protection 6 | . . 5 11 11 11 8 7 7 7 7 7 3 6 6 6 3 9 5 5 5 5 4 6 10 11 5 6 Energy Gun 4 | . 14 3 . . . . . . 2 7 6 4 . 5 . 6 5 5 5 5 5 3 7 9 10 3 4 Ballistic Gun 10 | . 14 18 21 22 22 17 12 14 11 7 4 10 19 12 1 12 9 7 11 5 8 8 4 4 4 5 . Naked Turns 20 | . . . . . . . . . . . . . . . . . . . . . . . . . . . 20 Heaviest Build 154 | 13 29 37 41 61 61 63 65 67 65 64 68 83 70 73 65 70 95 95 95 98 107 101 121 123 151 154 113 Greatest Support 188 | 40 40 60 60 60 63 83 83 80 43 43 16 16 12 12 12 40 28 28 28 28 28 45 116 150 150 188 70 Greatest Overweight (x) 9 | . 1 . . 1 1 . . 4 4 3 4 6 5 6 5 5 3 3 3 3 3 3 3 1 1 9 9 Average Overweight (x) 2 | . . . . . . . . 2 3 2 3 4 5 5 4 4 3 3 3 3 3 2 1 . . 1 4 Largest Inventory Capacity 25 | 8 15 15 15 20 20 20 20 20 20 20 20 20 20 20 20 20 20 20 20 20 20 20 20 20 25 25 20 Average Capacity 19 | 7 11 15 15 19 20 20 20 20 20 20 20 20 20 20 20 20 20 20 20 20 20 20 20 20 21 23 15 Most Carried 25 | 3 10 15 15 20 20 20 20 20 19 20 20 20 20 20 20 20 20 20 20 20 20 20 20 20 25 25 17 Average Carried 18 | 1 5 13 15 18 19 19 19 18 18 19 20 19 19 19 20 19 19 19 19 19 20 18 19 19 21 19 9 Final Capacity 25 | 8 15 15 15 20 20 20 20 20 20 20 20 20 20 20 20 20 20 20 20 20 20 20 20 20 25 5 5 Final Carried 25 | 1 9 15 15 20 20 20 20 18 18 20 20 20 20 20 20 20 20 20 20 20 20 19 20 20 25 5 5 Class Distribution -------------------- 36% | Mutant 23% | Scavenger-Mutant 11% | Scavenger-Skirmisher 7% | Skirmisher 4% | Hacker-Mutant 4% | Scavenger-Tank 3% | Scavenger-Gunner Dominant Class ---------------- Mutant | -10/Materials Scavenger-Mutant | -9/Materials Mutant | -9/Mines Mutant | -9/Exiles Mutant | -8/Mines Mutant | -8/Materials Scavenger-Mutant | -7/Factory Mutant | -7/Lower Caves Mutant | -7/Lower Caves Scavenger-Mutant | -7/Zion Mutant | -6/Proximity Caves Scavenger-Skirmisher | -6/Factory Skirmisher | -6/Lower Caves Skirmisher | -6/Lower Caves Mutant | -6/Data Miner Scavenger-Skirmisher | -5/Proximity Caves Scavenger-Skirmisher | -5/Factory Scavenger-Gunner | -5/Upper Caves Scavenger-Gunner | -5/Upper Caves Scavenger-Mutant | -5/Warlord Scavenger-Mutant | -4/Proximity Caves Skirmisher | -4/Factory Scavenger-Skirmisher | -4/Extension Scavenger-Tank | -4/Cetus Scavenger-Tank | -4/Archives Scavenger-Skirmisher | -3/Research Hacker-Mutant | -3/Quarantine Resources | -11 -10 -9 -9 -9 -8 -8 -7 -7 -7 -7 -6 -6 -6 -6 -6 -5 -5 -5 -5 -5 -4 -4 -4 -4 -4 -3 -3 ----------- Run | Scr Mat Mat Min Exi Min Mat Fac Low Low Zio Pro Fac Low Low Dat Pro Fac Upp Upp War Pro Fac Ext Cet Arc Res Qua Matter Collected 6727 | 223 98 247 212 . 176 613 403 484 130 27 198 627 118 144 . 174 182 80 14 50 172 556 271 188 196 914 230 Remotely . | . . . . . . . . . . . . . . . . . . . . . . . . . . . . Salvage Created 10133 | . 361 478 190 . 27 717 301 338 166 . 477 826 . 264 . 311 350 208 . . 127 1498 324 238 451 1978 503 Parts 481 | . 25 33 11 . 4 40 12 13 7 . 16 48 . 8 . 13 10 8 . . 2 59 12 18 10 112 20 Haulers Intercepted 10 | . 1 3 . . . 4 . . . . . . . . . . . . . . . 2 . . . . . Recyclers Shooed 11 | . . . . . . 2 . . . . . 2 . . . . 3 . . . . 1 . . . 3 . Parts Field Recycled . | . . . . . . . . . . . . . . . . . . . . . . . . . . . . Retrieved Matter . | . . . . . . . . . . . . . . . . . . . . . . . . . . . . Parts Self-Destructed 69 | . . . . . . . . 15 7 . 13 . . 8 . 11 . 7 . . 8 . . . . . . Prevented 1 | . . . . . . . . . 1 . . . . . . . . . . . . . . . . . . Kills | -11 -10 -9 -9 -9 -8 -8 -7 -7 -7 -7 -6 -6 -6 -6 -6 -5 -5 -5 -5 -5 -4 -4 -4 -4 -4 -3 -3 ------- Run | Scr Mat Mat Min Exi Min Mat Fac Low Low Zio Pro Fac Low Low Dat Pro Fac Upp Upp War Pro Fac Ext Cet Arc Res Qua Combat Hostiles Destroyed 186 | . 9 6 5 . 2 10 5 8 3 . 13 17 . 8 . 4 4 3 . . 2 20 8 11 4 33 11 Melee 1 | . . . . . . . . . . . . . . . . . . . . . . 1 . . . . . Guns 110 | . 9 5 3 . 2 8 5 6 2 . 4 7 . 5 . 2 4 3 . . 2 15 2 5 3 16 2 Cannons 9 | . . . . . . . . . . . 1 1 . 1 . . . . . . . . . . . 3 3 AOE 61 | . . . 2 . . 1 . 2 1 . 8 9 . 2 . 2 . . . . . 4 5 6 . 14 5 Classes Destroyed 18 | . 3 2 . . . 3 1 1 1 . . 3 . . . . . . . . . . . . 1 2 1 Worker 19 | . . 2 . . . 1 . . . . . 1 . . . . . . . . . 11 . . . 4 . Builder 16 | . . . . . . 3 . . . . . 3 . . . . . . . . . . . . . 10 . Hauler 10 | . 1 3 . . . 4 . . . . . . . . . . . . . . . 2 . . . . . Recycler 5 | . . . . . . . . . . . . 1 . . . . 1 . . . . 2 . . . 1 . Operator 3 | . . . . . . . . . . . . . . . . . . . . . . . . . 3 . . Watcher 7 | . . . . . . 2 . . . . . 2 . . . . . . . . . . 1 . . 1 1 Swarmer 30 | . 3 . . . 2 . . . . . 1 . . 4 . 2 . . . . . 4 4 8 . 2 . Grunt 76 | . 6 2 5 . . 6 . 6 . . 9 11 . 4 . . 2 2 . . 1 11 2 . . 6 3 Brawler 1 | . . . . . . . . . . . . 1 . . . . . . . . . . . . . . . Duelist 6 | . . . . . . . . 2 . . 2 1 . . . . . . . . 1 . . . . . . Protector 2 | . . . . . . . . . . . . 1 . . . . . . . . . . . . . 1 . Researcher 1 | . . . . . . . . . . . . . . . . . . . . . . . . . . . 1 Sentry 19 | . . 4 . . . 2 2 . 1 . . 1 . . . . . 1 . . . 1 2 . 4 1 . Specialist 2 | . . . . . . . . . . . . . . . . . . . . . . . . . . 2 . Hunter 13 | . . . . . . 2 2 . . . . . . . . 2 . . . . . . . . . 7 . Programmer 31 | . . . . . . . 1 . . . 1 2 . . . . 2 . . . . 4 . 2 . 13 6 Cetus Guard 1 | . . . . . . . . . . . . . . . . . . . . . . . . 1 . . . Lightning 2 | . . . . . . . . . . . . . . . . . . . . . . . . . . . 2 Executioner 1 | . . . . . . . . . . . . . . . . . . . . . . . . . . 1 . Thug 1 | . . . . . . . . . 1 . . . . . . . . . . . . . . . . . . Mutant 1 | . . . . . . . . . 1 . . . . . . . . . . . . . . . . . . Best Kill Streak 18 | . 3 3 3 . 2 6 2 3 2 . 5 14 . 4 . 2 5 3 . . 2 14 7 6 3 18 5 Combat Bots Only 11 | . 3 2 3 . 2 2 2 3 2 . 5 11 . 4 . 2 4 3 . . 2 5 7 6 1 11 5 Max Kills in Single Turn 14 | . 1 2 2 . 2 2 1 2 1 . 3 4 . 2 . 1 1 1 . . 1 14 3 6 1 3 2 Gunslinging 1 | . . . . . 1 . . . . . . . . 1 . . . . . . . 1 . 1 . 1 . Exploded 6 | . . . 2 . . 1 . 2 1 . 2 3 . 2 . 1 . . . . . 2 3 6 . 2 2 Melee 1 | . . . . . . . . . . . . . . . . . . . . . . 1 . . . . . Uniques/NPCs Destroyed . | . . . . . . . . . . . . . . . . . . . . . . . . . . . . Combat | -11 -10 -9 -9 -9 -8 -8 -7 -7 -7 -7 -6 -6 -6 -6 -6 -5 -5 -5 -5 -5 -4 -4 -4 -4 -4 -3 -3 -------- Run | Scr Mat Mat Min Exi Min Mat Fac Low Low Zio Pro Fac Low Low Dat Pro Fac Upp Upp War Pro Fac Ext Cet Arc Res Qua Damage Taken 22350 | . 366 650 56 . 10 850 855 458 315 . 663 1147 69 490 . 278 687 189 . 8 256 2301 888 371 710 6246 4487 Core 2751 | . 76 52 . . . 59 117 62 28 . 124 236 26 99 . 19 76 20 . . 9 315 67 29 36 752 549 Absorbed by Shields 887 | . . . . . . . . . . . . . . . . . . . . 7 241 603 . 36 . . . Reduced by Siege Mode 298 | . . . . . . . . . . . . . . . . . . . . . . . . . 14 284 . Redirected to Shielding 438 | . . . . . . . . . . . . . 15 67 . 65 74 . . . . . . . . . 217 Regen/Repaired (Parts) 380 | . . . . . . 89 . . . . . 86 . . . . . . . . . 205 . . . . . Core Remaining (%) 75 | 100 69 . . . 87 89 . . . . 52 . . . . 55 . . . . 89 . . . 61 . . Volleys Fired 516 | . 31 45 12 . 1 41 33 21 11 . 22 33 5 9 . 21 15 5 . 5 10 33 19 18 33 71 22 Largest 3 | . 2 2 2 . 2 2 2 2 2 . 2 3 3 3 . 3 3 3 . 1 3 3 3 3 3 3 3 Hottest 383 | . 70 70 46 . 46 48 86 66 89 . 89 136 136 145 . 143 145 148 . 30 145 148 206 203 203 383 259 Shots Fired 1183 | . 62 89 22 . 2 79 66 38 22 . 35 85 13 19 . 37 43 16 . 5 23 116 62 38 91 174 46 Gun 1095 | . 62 89 20 . 2 76 66 33 20 . 22 80 13 15 . 34 43 16 . 5 23 111 60 36 91 150 28 Cannon 8 | . . . . . . . . . . . . . . . . . . . . . . . . . . . 8 Launcher 44 | . . . 2 . . 3 . 5 2 . 10 . . . . . . . . . . 5 2 1 . 8 6 Special 36 | . . . . . . . . . . . 3 5 . 4 . 3 . . . . . . . 1 . 16 4 Kinetic 735 | . 31 74 20 . 2 76 59 33 11 . 10 67 10 11 . 16 28 11 . 5 18 84 27 17 31 94 . Thermal 371 | . 31 15 . . . . 7 . 9 . 12 13 3 4 . 18 15 5 . . 5 27 33 19 60 59 36 Explosive 74 | . . . 2 . . 3 . 5 2 . 13 5 . 4 . 3 . . . . . 5 2 2 . 18 10 Electromagnetic 3 | . . . . . . . . . . . . . . . . . . . . . . . . . . 3 . Robot Hit Streak 48 | . 7 16 8 . 10 48 11 17 4 . 6 27 2 4 . 7 7 9 . . 11 20 12 13 23 15 17 Robot Miss Streak 5 | . 2 2 3 . . 2 3 2 1 . 2 4 3 3 . 2 3 2 . . 3 2 2 3 2 5 5 Penetration Max 2 | . . . . . . . . . . . . 1 . . . . 2 1 . . 1 1 . . . 1 . Secondary Targets 21 | . . . 1 . 1 . . 1 . . . . . 2 . 1 2 . . . 1 4 1 2 . 5 . Max Gunslinging Chain 2 | . . . 1 . 1 . . 1 . . . . . 1 . 1 1 . . . 1 1 1 2 . 1 . Autonomous 48 | . . . . . . . . . . . . . . . . . . . . . . 32 16 . . . . Shots Hit Robots 893 | . 42 65 15 . 2 74 55 28 15 . 26 61 7 8 . 25 31 10 . . 17 98 51 24 72 121 46 Core Hits 517 | . 19 21 8 . 2 36 13 17 9 . 32 46 . 11 . 10 13 6 . . 7 68 23 17 27 106 26 Critical Kills 6 | . 1 . . . . . . . . . . . . 1 . . . 2 . . . . . . . 2 . Critical Parts Destroyed 12 | . . . . . . . . 1 . . . 1 . . . . . . . . . . 1 . . 6 3 Critical Strikes 76 | . 6 1 . . . . 1 1 2 . 2 2 . 4 . 4 5 3 . . 1 7 5 4 6 17 5 Burn 46 | . 5 1 . . . . 1 . 2 . 1 1 . 1 . 3 5 1 . . 1 7 4 3 6 4 . Destroy 15 | . 1 . . . . . . 1 . . . 1 . 1 . . . 2 . . . . 1 . . 8 . Smash 3 | . . . . . . . . . . . . . . . . . . . . . . . . . . . 3 Sever 12 | . . . . . . . . . . . 1 . . 2 . 1 . . . . . . . 1 . 5 2 Melee Attacks 84 | . . . . . . 9 1 . . . 2 6 . . . . 2 . . 11 2 14 . . . 4 33 Impact 84 | . . . . . . 9 1 . . . 2 6 . . . . 2 . . 11 2 14 . . . 4 33 Slashing . | . . . . . . . . . . . . . . . . . . . . . . . . . . . . Piercing . | . . . . . . . . . . . . . . . . . . . . . . . . . . . . Sneak Attacks 1 | . . . . . . 1 . . . . . . . . . . . . . . . . . . . . . Combat Hostiles . | . . . . . . . . . . . . . . . . . . . . . . . . . . . . Follow-up Attacks . | . . . . . . . . . . . . . . . . . . . . . . . . . . . . Damage Inflicted 35768 | . 472 681 394 . 30 1666 983 830 471 . 1750 3888 156 669 . 750 834 236 . . 423 4781 1906 1170 1630 8567 3481 Guns 18117 | . 472 681 206 . 30 952 983 473 266 . 347 1437 156 157 . 483 834 236 . . 423 2510 1212 566 1630 3476 587 Cannons 177 | . . . . . . . . . . . . . . . . . . . . . . . . . . . 177 Explosions 14670 | . . . 188 . . 437 . 357 205 . 1318 2279 . 414 . 193 . . . . . 2210 694 574 . 4498 1303 Melee 1590 | . . . . . . 277 . . . . . . . . . . . . . . . 61 . . . . 1252 Ramming 19 | . . . . . . . . . . . . 13 . . . . . . . . . . . . . 6 . Kinetic 12163 | . 182 517 206 . 30 952 863 473 126 . 142 1187 133 139 . 260 562 182 . . 369 2066 583 301 549 2341 . Thermal 8082 | . 290 164 . . . . 120 . 140 . 205 250 23 18 . 223 272 54 . . 54 1850 629 265 1081 1680 764 Explosive 12467 | . . . 188 . . 437 . 357 205 . 1318 2279 . 414 . 193 . . . . . 804 694 574 . 3701 1303 Electromagnetic 252 | . . . . . . . . . . . . . . . . . . . . . . . . . . 252 . Impact 1590 | . . . . . . 277 . . . . . . . . . . . . . . . 61 . . . . 1252 Slashing 1195 | . . . . . . . . . . . 85 159 . 98 . 74 . . . . . . . 30 . 587 162 Piercing . | . . . . . . . . . . . . . . . . . . . . . . . . . . . . Highest Corruption 91 | . . . . . . . 1 1 1 1 . 1 1 1 1 1 2 2 2 2 . 1 1 8 11 35 91 Average Corruption 7 | . . . . . . . 1 1 1 1 . 1 1 1 1 1 1 2 2 2 . 1 1 2 8 16 47 Corruption Purged . | . . . . . . . . . . . . . . . . . . . . . . . . . . . . Corruption Blocked . | . . . . . . . . . . . . . . . . . . . . . . . . . . . . Effects 150 | . . . . . . . 6 4 5 1 . 3 5 1 1 3 2 3 4 1 . . 13 5 12 19 62 Message Errors 26 | . . . . . . . . 1 2 . . 1 1 . . 1 . 2 2 . . . 3 3 2 1 7 Matter Fused 37 | . . . . . . . 2 . 2 1 . 1 2 . . . . . . . . . 3 1 2 4 19 Heat Flow Errors 13 | . . . . . . . . . 1 . . . . 1 . 1 1 . . . . . 1 . . 1 7 Energy Discharges 17 | . . . . . . . 3 . . . . . . . 1 1 . . . . . . 1 . 1 3 7 Parts Rejected 5 | . . . . . . . . . . . . . 1 . . . 1 . . . . . . . . 2 1 Data Loss (minor) 18 | . . . . . . . . 2 . . . . 1 . . . . . 1 1 . . 3 . 1 3 6 Data Loss (major) 11 | . . . . . . . 1 1 . . . 1 . . . . . . 1 . . . 2 . 2 1 2 Misfires 3 | . . . . . . . . . . . . . . . . . . 1 . . . . . . . . 2 Alerts 1 | . . . . . . . . . . . . . . . . . . . . . . . . . . 1 . Misdirections 9 | . . . . . . . . . . . . . . . . . . . . . . . . . . 3 6 Weapon Failures 10 | . . . . . . . . . . . . . . . . . . . . . . . . 1 4 . 5 Overload Shots . | . . . . . . . . . . . . . . . . . . . . . . . . . . . . Overflow Damage 777 | . . . 4 . . 89 . . . . 3 182 . . . . . . . . . 60 26 14 . 138 261 Projectiles 71 | . . . . . . . . . . . . 31 . . . . . . . . . . . . . 40 . Explosions 495 | . . . 4 . . . . . . . 3 151 . . . . . . . . . 60 26 14 . 98 139 Melee 211 | . . . . . . 89 . . . . . . . . . . . . . . . . . . . . 122 Knockbacks 6 | . . . . . . 1 . . . . . . . . . . . . . . . . . . . . 5 Impact 5 | . . . . . . 1 . . . . . . . . . . . . . . . . . . . . 4 Kinetic . | . . . . . . . . . . . . . . . . . . . . . . . . . . . . Secondary 1 | . . . . . . . . . . . . . . . . . . . . . . . . . . . 1 Self-Inflicted Damage 599 | . . . . . . . . 26 . . 30 6 . . . . . . . . . 232 . . . 43 262 Shots 11 | . . . . . . . . 1 . . 2 . . . . . . . . . . 3 . . . 1 4 Rammed 2 | . . . . . . . . . . . . 1 . . . . . . . . . . . . . 1 . Targets Rammed 3 | . . . . . . . . . . . . 1 . . . . . . . . . 1 . . . 1 . Kicked 1 | . . . . . . . . . . . . . . . . . . . . . . 1 . . . . . Crushed . | . . . . . . . . . . . . . . . . . . . . . . . . . . . . Highest Temperature 471 | . 140 31 6 . . 6 12 . 259 . 17 129 102 102 . 201 342 194 . 1 200 184 324 . 10 471 303 Average Temperature 73 | . 38 6 3 . . 4 5 . 104 . 17 24 64 29 . 49 150 109 . 1 139 57 126 . 7 127 102 Received Heat Transfer 3781 | . 120 234 33 . . 297 180 189 100 . 172 342 . 196 . 12 243 63 . . 115 399 162 . 117 651 156 Effects 2 | . . . . . . . . . . . . . . . . . . . . . 1 . . . . 1 . Shutdowns 1 | . . . . . . . . . . . . . . . . . . . . . . . . . . 1 . Energy Bleed 1 | . . . . . . . . . . . . . . . . . . . . . 1 . . . . . . Siege Activations 5 | . . . . . . . . . . . . . . . . . . . . . . . . . 3 2 . Total Turns 128 | . . . . . . . . . . . . . . . . . . . . . . . . . 40 88 . Longest Duration 79 | . . . . . . . . . . . . . . . . . . . . . . . . . 24 79 . Robots Corrupted . | . . . . . . . . . . . . . . . . . . . . . . . . . . . . Combat Hostiles . | . . . . . . . . . . . . . . . . . . . . . . . . . . . . Parts Fried 4 | . . . . . . 2 . . . . . . . . . . . . . . . . . . . 1 1 Impact Corruptions 10 | . . . . . . 3 . . . . . . . . . . . . . . . . . . . . 7 Robots Melted 3 | . . 1 . . . . . . . . . . . . . . . . . . . . 1 . 1 . . Combat Hostiles 3 | . . 1 . . . . . . . . . . . . . . . . . . . . 1 . 1 . . Parts Melted 35 | . 1 2 . . . . . . . . . 3 . 1 . . 2 . . . 3 3 1 1 13 3 2 Heat Transferred 18107 | . 1184 555 . . . . 296 . 407 . 407 637 50 150 . 900 1200 250 . . 250 2900 1503 770 2801 2959 888 Parts Sabotaged 4 | . . . . . . . . . . . . . . . . . . . . . . . . . . 4 . Parts Stolen 1 | . . . . . . . . . . . . . 1 . . . . . . . . . . . . . . Parts Stripped . | . . . . . . . . . . . . . . . . . . . . . . . . . . . . Power Chain Reactions . | . . . . . . . . . . . . . . . . . . . . . . . . . . . . Missiles Intercepted . | . . . . . . . . . . . . . . . . . . . . . . . . . . . . Alert | -11 -10 -9 -9 -9 -8 -8 -7 -7 -7 -7 -6 -6 -6 -6 -6 -5 -5 -5 -5 -5 -4 -4 -4 -4 -4 -3 -3 ------- Run | Scr Mat Mat Min Exi Min Mat Fac Low Low Zio Pro Fac Low Low Dat Pro Fac Upp Upp War Pro Fac Ext Cet Arc Res Qua Peak Influence 865 | . 263 272 191 . 50 305 181 . . . . 619 . . . . 199 . . . . 799 482 632 414 865 592 Initial 480 | . . 110 53 . . 19 95 . . . . 56 . . . . 30 . . . . 49 391 178 252 155 480 Average 233 | . 134 175 92 . 2 136 59 . . . . 303 . . . . 70 . . . . 239 322 406 368 390 428 Maximum Alert Level 3 | . 1 1 . . . 1 . . . . . 2 . . . . . . . . . 3 2 2 2 3 2 Low Security (%) 48 | 100 74 67 100 . 100 69 100 . . . . 31 . . . . 100 . . . . 42 11 12 . 21 . Level 1 29 | . 25 32 . . . 30 . . . . . 20 . . . . . . . . . 45 64 17 46 33 42 Level 2 19 | . . . . . . . . . . . . 48 . . . . . . . . . 4 24 69 53 28 57 Level 3 1 | . . . . . . . . . . . . . . . . . . . . . . 7 . . . 16 . Level 4 . | . . . . . . . . . . . . . . . . . . . . . . . . . . . . Level 5 . | . . . . . . . . . . . . . . . . . . . . . . . . . . . . High Security . | . . . . . . . . . . . . . . . . . . . . . . . . . . . . Max Security . | . . . . . . . . . . . . . . . . . . . . . . . . . . . . Squads Dispatched 30 | . 3 1 . . . 3 3 . . . . 3 . . . . 3 . . . . 4 . . . 8 2 Investigation 7 | . 2 . . . . . 1 . . . . 1 . . . . . . . . . 2 . . . 1 . Extermination 8 | . . . . . . . 2 . . . . 1 . . . . 1 . . . . . . . . 3 1 Reinforcement 10 | . 1 1 . . . 2 . . . . . . . . . . 2 . . . . 1 . . . 2 1 Assault 1 | . . . . . . . . . . . . 1 . . . . . . . . . . . . . . . Garrison 4 | . . . . . . 1 . . . . . . . . . . . . . . . 1 . . . 2 . Intercept . | . . . . . . . . . . . . . . . . . . . . . . . . . . . . Searches Triggered . | . . . . . . . . . . . . . . . . . . . . . . . . . . . . Data Miner Redirects 2 | . . . . . . . . . . . . . . . . . . . . . . 1 . . . 1 . Construction Impeded 2 | . . . . . . 1 . . . . . . . . . . . . . . . . . . . 1 . Haulers Reinforced . | . . . . . . . . . . . . . . . . . . . . . . . . . . . . Active Scanning Responses . | . . . . . . . . . . . . . . . . . . . . . . . . . . . . Cargo Convoy Interrupts 1 | . . . . . . . . . . . . . . . . . . . . . . . . . . 1 . Stealth | -11 -10 -9 -9 -9 -8 -8 -7 -7 -7 -7 -6 -6 -6 -6 -6 -5 -5 -5 -5 -5 -4 -4 -4 -4 -4 -3 -3 --------- Run | Scr Mat Mat Min Exi Min Mat Fac Low Low Zio Pro Fac Low Low Dat Pro Fac Upp Upp War Pro Fac Ext Cet Arc Res Qua Distress Signals 13 | . . 1 . . . 3 . . . . . 2 . . . . 1 . . . . 3 1 1 . 1 . Communications Jammed 65 | . . . . . . . . . . . . . . . . . . . . . . . . . . 65 . Distress Signals 61 | . . . . . . . . . . . . . . . . . . . . . . . . . . 61 . Times Spotted 297 | . 11 10 5 . 3 19 7 8 3 . 13 24 1 8 . 7 14 3 . 4 4 31 25 18 9 48 22 Peak Tracking Total 12 | . 5 4 3 . 2 4 2 3 2 . 5 12 1 4 . 4 4 3 . 5 4 8 10 6 1 12 6 Tactical Retreats 8 | . . 1 . . . 1 . . . . . 1 . . . . . . . . . 3 . . . 1 1 Traps | -11 -10 -9 -9 -9 -8 -8 -7 -7 -7 -7 -6 -6 -6 -6 -6 -5 -5 -5 -5 -5 -4 -4 -4 -4 -4 -3 -3 ------- Run | Scr Mat Mat Min Exi Min Mat Fac Low Low Zio Pro Fac Low Low Dat Pro Fac Upp Upp War Pro Fac Ext Cet Arc Res Qua Traps Triggered 3 | . . 2 . . . . . . . . . 1 . . . . . . . . . . . . . . . Indirectly . | . . . . . . . . . . . . . . . . . . . . . . . . . . . . Trap Hack Attempts . | . . . . . . . . . . . . . . . . . . . . . . . . . . . . Triggered . | . . . . . . . . . . . . . . . . . . . . . . . . . . . . Disarmed . | . . . . . . . . . . . . . . . . . . . . . . . . . . . . Reprogrammed . | . . . . . . . . . . . . . . . . . . . . . . . . . . . . Reused . | . . . . . . . . . . . . . . . . . . . . . . . . . . . . Traps Extracted . | . . . . . . . . . . . . . . . . . . . . . . . . . . . . Installed . | . . . . . . . . . . . . . . . . . . . . . . . . . . . . Triggered 7 | . . . . . . . . . . . . . . . . . . . . 7 . . . . . . . Machines | -11 -10 -9 -9 -9 -8 -8 -7 -7 -7 -7 -6 -6 -6 -6 -6 -5 -5 -5 -5 -5 -4 -4 -4 -4 -4 -3 -3 ---------- Run | Scr Mat Mat Min Exi Min Mat Fac Low Low Zio Pro Fac Low Low Dat Pro Fac Upp Upp War Pro Fac Ext Cet Arc Res Qua Machines Disabled 28 | . . . . . . . . . . . . 4 . . . . . . . . . 14 . 1 2 1 6 Max in Single Turn 14 | . . . . . . . . . . . . 1 . . . . . . . . . 14 . . 1 1 2 Garrison Access 3 | . . . . . . . 1 . . . . 1 . . . . . . . . . 1 . . . . . Machines Sabotaged . | . . . . . . . . . . . . . . . . . . . . . . . . . . . . Garrisons Compromised . | . . . . . . . . . . . . . . . . . . . . . . . . . . . . Overloaded Fab Kills . | . . . . . . . . . . . . . . . . . . . . . . . . . . . . Hacking | -11 -10 -9 -9 -9 -8 -8 -7 -7 -7 -7 -6 -6 -6 -6 -6 -5 -5 -5 -5 -5 -4 -4 -4 -4 -4 -3 -3 --------- Run | Scr Mat Mat Min Exi Min Mat Fac Low Low Zio Pro Fac Low Low Dat Pro Fac Upp Upp War Pro Fac Ext Cet Arc Res Qua Machines Accessed 62 | . 3 1 . 2 . 6 9 . . . . 5 1 . 3 . 8 . . 5 . 6 3 1 . 2 7 Terminals 31 | . 1 . . . . 4 5 . . . . 3 . . . . 5 . . . . 2 3 1 . 1 6 Fabricators 4 | . . . . . . . 1 . . . . . . . . . 1 . . . . 1 . . . 1 . Repair Stations 5 | . 1 . . . . 1 . . . . . 1 . . . . . . . . . 2 . . . . . Recycling Units 4 | . 1 1 . . . . . . . . . . . . . . 2 . . . . . . . . . . Scanalyzers 4 | . . . . . . 1 2 . . . . . . . . . . . . . . . . . . . 1 Garrison Access 3 | . . . . . . . 1 . . . . 1 . . . . . . . . . 1 . . . . . Total Hacks 156 | . 10 3 . 2 . 14 22 . . . . 17 1 . 20 . 21 . . 12 . 12 7 2 . 3 10 Successful 94 | . 4 1 . 2 . 8 9 . . . . 9 1 . 20 . 10 . . 12 . 7 3 1 . 3 4 Failed 61 | . 6 2 . . . 6 13 . . . . 7 . . . . 11 . . . . 5 4 1 . . 6 Catastrophic 13 | . 1 . . . . 2 1 . . . . 2 . . . . 2 . . . . 1 . 1 . . 3 Database Lockouts 1 | . . . . . . . . . . . . 1 . . . . . . . . . . . . . . . Manual 45 | . 6 3 . 1 . 4 6 . . . . 7 . . . . 13 . . 1 . 1 . 1 . 1 1 Terminals 77 | . 4 . . . . 9 13 . . . . 12 . . . . 17 . . . . 3 7 2 . 1 9 Fabricators 6 | . . . . . . . 1 . . . . . . . . . 1 . . . . 2 . . . 2 . Repair Stations 15 | . 4 . . . . 3 . . . . . 3 . . . . . . . . . 5 . . . . . Recycling Units 8 | . 2 3 . . . . . . . . . . . . . . 3 . . . . . . . . . . Scanalyzers 10 | . . . . . . 2 7 . . . . . . . . . . . . . . . . . . . 1 Garrison Access 5 | . . . . . . . 1 . . . . 2 . . . . . . . . . 2 . . . . . Terminal Hacks 62 | . 1 . . 2 . 2 5 . . . . 5 1 . 20 . 4 . . 12 . 1 3 1 . 1 4 Record 10 | . . . . 1 . . . . . . . . . . 2 . . . . 6 . . . . . . 1 Part Schematic 12 | . . . . . . . . . . . . 1 . . 9 . 1 . . . . . . . . . 1 Robot Schematic 6 | . . . . . . . . . . . . . . . 6 . . . . . . . . . . . . Robot Analysis 1 | . 1 . . . . . . . . . . . . . . . . . . . . . . . . . . Prototype ID Bank 10 | . . . . . . . 1 . . . . 1 . . 3 . . . . 5 . . . . . . . Open Door 4 | . . . . . . . . . . . . . 1 . . . . . . 1 . . . 1 . . 1 Branch Access Points 3 | . . . . . . . . . . . . . . . . . 1 . . . . 1 . . . 1 . Emergency Access Points 2 | . . . . . . 1 . . . . . . . . . . 1 . . . . . . . . . . Terminal Index 2 | . . . . . . . 1 . . . . . . . . . . . . . . . 1 . . . . Alert Level 3 | . . . . . . . . . . . . 1 . . . . . . . . . . 1 . . . 1 Unreport Threat 1 | . . . . . . . . . . . . . . . . . . . . . . . 1 . . . . Locate Traps 1 | . . . . . . . 1 . . . . . . . . . . . . . . . . . . . . Hauler Manifests 1 | . . . . . . 1 . . . . . . . . . . . . . . . . . . . . . Zone Layout 5 | . . . . . . . 2 . . . . 2 . . . . 1 . . . . . . . . . . EX-Prototype ID Bank 1 | . . . . 1 . . . . . . . . . . . . . . . . . . . . . . . Fabricator Hacks 4 | . . . . . . . . . . . . . . . . . 1 . . . . 2 . . . 1 . Load Schematic 2 | . . . . . . . . . . . . . . . . . . . . . . 1 . . . 1 . Build 2 | . . . . . . . . . . . . . . . . . 1 . . . . 1 . . . . . Repair Station Hacks 10 | . 2 . . . . 2 . . . . . 3 . . . . . . . . . 3 . . . . . Scan Component 6 | . 2 . . . . 1 . . . . . 1 . . . . . . . . . 2 . . . . . Repair 3 | . . . . . . 1 . . . . . 1 . . . . . . . . . 1 . . . . . Refit 1 | . . . . . . . . . . . . 1 . . . . . . . . . . . . . . . Recycling Unit Hacks . | . . . . . . . . . . . . . . . . . . . . . . . . . . . . Scanalyzer 4 | . . . . . . 2 2 . . . . . . . . . . . . . . . . . . . . Insert Component 3 | . . . . . . 1 2 . . . . . . . . . . . . . . . . . . . . Analyze 1 | . . . . . . 1 . . . . . . . . . . . . . . . . . . . . . Garrison Access Hacks 2 | . . . . . . . 1 . . . . . . . . . . . . . . 1 . . . . . Seal Access 2 | . . . . . . . 1 . . . . . . . . . . . . . . 1 . . . . . Unauthorized Hacks 12 | . 1 1 . . . 2 1 . . . . 1 . . . . 5 . . . . . . . . 1 . Terminals 7 | . . . . . . 2 1 . . . . 1 . . . . 3 . . . . . . . . . . Track 2 | . . . . . . 1 . . . . . . . . . . 1 . . . . . . . . . . Botnet 1 | . . . . . . . . . . . . . . . . . 1 . . . . . . . . . . Operators 4 | . . . . . . 1 1 . . . . 1 . . . . 1 . . . . . . . . . . Fabricators 1 | . . . . . . . . . . . . . . . . . . . . . . . . . . 1 . Recompile 1 | . . . . . . . . . . . . . . . . . . . . . . . . . . 1 . Repair Stations . | . . . . . . . . . . . . . . . . . . . . . . . . . . . . Recycling Units 4 | . 1 1 . . . . . . . . . . . . . . 2 . . . . . . . . . . Recyclers 1 | . . . . . . . . . . . . . . . . . 1 . . . . . . . . . . Mask 2 | . . 1 . . . . . . . . . . . . . . 1 . . . . . . . . . . Tunnel 1 | . 1 . . . . . . . . . . . . . . . . . . . . . . . . . . Scanalyzers . | . . . . . . . . . . . . . . . . . . . . . . . . . . . . Garrison Access . | . . . . . . . . . . . . . . . . . . . . . . . . . . . . Data Cores Recovered . | . . . . . . . . . . . . . . . . . . . . . . . . . . . . Used . | . . . . . . . . . . . . . . . . . . . . . . . . . . . . Hacking Detections 47 | . 3 1 . . . 6 8 . . . . 5 . . . . 8 . . . . 5 3 . . 2 6 Full Trace Events 6 | . 2 . . . . . 1 . . . . 1 . . . . . . . . . 2 . . . . . Feedback Events 2 | . . . . . . . 1 . . . . 1 . . . . . . . . . . . . . . . Corruption 2 | . . . . . . . 1 . . . . 1 . . . . . . . . . . . . . . . Feedback Blocked . | . . . . . . . . . . . . . . . . . . . . . . . . . . . . Robot Schematics Acquired 6 | . . . . . . . . . . . . . . . 6 . . . . . . . . . . . . Robots Built . | . . . . . . . . . . . . . . . . . . . . . . . . . . . . Authchips . | . . . . . . . . . . . . . . . . . . . . . . . . . . . . Time . | . . . . . . . . . . . . . . . . . . . . . . . . . . . . Total Robot Build Rating . | . . . . . . . . . . . . . . . . . . . . . . . . . . . . Part Schematics Acquired 13 | . . . . . . 1 . . . . . 1 . . 9 . 1 . . . . . . . . . 1 Parts Built 2 | . . . . . . . . . . . . . . . . . 1 . . . . 1 . . . . . Authchips . | . . . . . . . . . . . . . . . . . . . . . . . . . . . . Time 115 | . . . . . . . . . . . . . . . . . 42 . . . . 73 . . . . . Total Part Build Rating 11 | . . . . . . . . . . . . . . . . . 8 . . . . 3 . . . . . Parts Repaired 3 | . . . . . . 1 . . . . . 1 . . . . . . . . . 1 . . . . . Time 119 | . . . . . . 26 . . . . . 32 . . . . . . . . . 61 . . . . . Parts Recycled . | . . . . . . . . . . . . . . . . . . . . . . . . . . . . Recycled Matter . | . . . . . . . . . . . . . . . . . . . . . . . . . . . . Retrieved Matter . | . . . . . . . . . . . . . . . . . . . . . . . . . . . . Retrieved Components . | . . . . . . . . . . . . . . . . . . . . . . . . . . . . Parts Scanalyzed 3 | . . . . . . 1 2 . . . . . . . . . . . . . . . . . . . . Part Schematics Acquired 1 | . . . . . . 1 . . . . . . . . . . . . . . . . . . . . . Parts Damaged . | . . . . . . . . . . . . . . . . . . . . . . . . . . . . Bothacking | -11 -10 -9 -9 -9 -8 -8 -7 -7 -7 -7 -6 -6 -6 -6 -6 -5 -5 -5 -5 -5 -4 -4 -4 -4 -4 -3 -3 ------------ Run | Scr Mat Mat Min Exi Min Mat Fac Low Low Zio Pro Fac Low Low Dat Pro Fac Upp Upp War Pro Fac Ext Cet Arc Res Qua Used RIF Installer . | . . . . . . . . . . . . . . . . . . . . . . . . . . . . Robots Hacked . | . . . . . . . . . . . . . . . . . . . . . . . . . . . . Non-combat . | . . . . . . . . . . . . . . . . . . . . . . . . . . . . Combat . | . . . . . . . . . . . . . . . . . . . . . . . . . . . . Robot Hacks Applied . | . . . . . . . . . . . . . . . . . . . . . . . . . . . . Relay Couplers Released 5 | . . . . . . . . . . . . 2 . . . . . . . . . 3 . . . . . Machine Destruction 2 | . . . . . . . . . . . . 2 . . . . . . . . . . . . . . . Programmers 3 | . . . . . . . . . . . . . . . . . . . . . . 3 . . . . . Fabnet Peak Effective % . | . . . . . . . . . . . . . . . . . . . . . . . . . . . . Robots Rewired 17 | . . . . 1 . . . . . . . . . . . . . . . 3 . . 13 . . . . Allies Hacked . | . . . . . . . . . . . . . . . . . . . . . . . . . . . . Hacks Repelled . | . . . . . . . . . . . . . . . . . . . . . . . . . . . . Allies | -11 -10 -9 -9 -9 -8 -8 -7 -7 -7 -7 -6 -6 -6 -6 -6 -5 -5 -5 -5 -5 -4 -4 -4 -4 -4 -3 -3 -------- Run | Scr Mat Mat Min Exi Min Mat Fac Low Low Zio Pro Fac Low Low Dat Pro Fac Upp Upp War Pro Fac Ext Cet Arc Res Qua Total Allies 23 | . . . . 1 . . . . . . . . . . . 1 . . . 3 . . 18 . . . . Largest Group 10 | . . . . 1 1 . . . . . . . . . . 1 1 . . 3 2 1 10 3 1 . . Highest-Rated Group 405 | . . . . 8 8 . . . . . . . . . . 96 96 . . 155 114 65 405 247 153 . . Highest-Rated Ally 159 | . . . . 8 8 . . . . . . . . . . 96 96 . . 65 65 65 159 159 153 . . Total Orders . | . . . . . . . . . . . . . . . . . . . . . . . . . . . . Ally Attacks 186 | . . . . . 2 . . . . . . . . . . 17 6 . . 1 11 . 97 52 . . . Total Damage 5581 | . . . . . 10 . . . . . . . . . . 839 141 . . . 354 . 2961 1276 . . . Kills 31 | . . . . . . . . . . . . . . . . 3 2 . . . 2 . 18 6 . . . Allies Corrupted . | . . . . . . . . . . . . . . . . . . . . . . . . . . . . Allies Melted . | . . . . . . . . . . . . . . . . . . . . . . . . . . . . Intel | -11 -10 -9 -9 -9 -8 -8 -7 -7 -7 -7 -6 -6 -6 -6 -6 -5 -5 -5 -5 -5 -4 -4 -4 -4 -4 -3 -3 ------- Run | Scr Mat Mat Min Exi Min Mat Fac Low Low Zio Pro Fac Low Low Dat Pro Fac Upp Upp War Pro Fac Ext Cet Arc Res Qua Robot Analysis Total 1 | . 1 . . . . . . . . . . . . . . . . . . . . . . . . . . Derelict Logs Recovered 16 | . . . 2 . . . . 2 3 3 . . 1 1 . 1 . . . . 3 . . . . . . Drone Launches . | . . . . . . . . . . . . . . . . . . . . . . . . . . . . Drone Recoveries . | . . . . . . . . . . . . . . . . . . . . . . . . . . . . Exploration | -11 -10 -9 -9 -9 -8 -8 -7 -7 -7 -7 -6 -6 -6 -6 -6 -5 -5 -5 -5 -5 -4 -4 -4 -4 -4 -3 -3 ------------- Run | Scr Mat Mat Min Exi Min Mat Fac Low Low Zio Pro Fac Low Low Dat Pro Fac Upp Upp War Pro Fac Ext Cet Arc Res Qua Turns Passed 18611 | 70 399 460 773 876 348 1176 978 602 637 1125 611 880 607 594 128 714 478 362 369 1230 319 755 1688 397 318 763 954 Spaces Moved 9543 | 40 177 168 457 398 156 508 527 315 352 689 338 427 352 335 81 414 275 232 253 741 192 343 768 158 87 297 463 Core 162 | 4 . . . . . . . . . . . . . . . . . . . . . . . . . 60 98 Treads 3558 | 36 177 168 457 398 156 508 527 116 50 118 . . . . . . . . . . . . 418 158 87 180 4 Legs 39 | . . . . . . . . . . . . . . . . 1 . . . . . 38 . . . . . Wheels 5784 | . . . . . . . . 199 302 571 338 427 352 335 81 413 275 232 253 741 192 305 350 . . 57 361 Hover . | . . . . . . . . . . . . . . . . . . . . . . . . . . . . Flight . | . . . . . . . . . . . . . . . . . . . . . . . . . . . . Fastest Speed 50 | 50 160 160 160 160 160 160 162 160 145 145 145 145 165 165 150 130 145 145 145 145 145 130 145 160 160 50 50 Average Speed 162 | 149 161 160 160 218 217 161 162 162 168 161 145 160 165 165 151 153 145 145 145 145 145 148 183 208 200 146 156 Slowest Speed 330 | 160 240 160 160 240 240 162 162 243 240 240 160 180 165 180 165 190 145 145 145 145 145 330 255 240 240 240 225 Overloaded Moves . | . . . . . . . . . . . . . . . . . . . . . . . . . . . . Propulsion Burnouts . | . . . . . . . . . . . . . . . . . . . . . . . . . . . . Robots Hopped . | . . . . . . . . . . . . . . . . . . . . . . . . . . . . Cave-ins Triggered 1 | . . . . . . . . . . . . . . . . . . . . . . . . . . . 1 Exploration Rate (%) 47 | 3 43 25 80 88 40 43 17 51 60 82 59 14 43 43 68 56 9 55 45 86 39 10 84 68 73 11 46 Regions Visited 27 Branch Regions 19 Pre-discovered Areas 5 | . 1 . . . . . . . 1 2 . . . . 1 . . . . . . . . . . . . Known Exits Taken 21 | . . . . . . 1 1 1 1 1 1 1 1 1 1 1 1 1 1 1 1 1 1 1 1 1 . Unknown Exits Taken 6 | 1 1 1 1 1 1 . . . . . . . . . . . . . . . . . . . . . . Scrap Searched 32 | . . . 3 . . . . 2 3 3 2 . 2 10 . 2 . 1 3 . 1 . . . . . . Spaces Dug 41 | . . . . . . 1 1 . . . 2 5 . . . . 2 . . 12 4 7 . . . 4 3 Terrain Destroyed 797 | . . . 9 . . 20 1 29 15 . 97 45 1 51 . 58 2 1 . 12 4 112 31 24 . 154 131 Melee 34 | . . . . . . 1 1 . . . 2 5 . . . . 2 . . 7 2 7 . . . 4 3 Projectile 39 | . . . . . . . . . . . . 3 1 4 . 2 . 1 . 5 2 8 7 . . 3 3 AOE 724 | . . . 9 . . 19 . 29 15 . 95 37 . 47 . 56 . . . . . 97 24 24 . 147 125 Terrain Rammed . | . . . . . . . . . . . . . . . . . . . . . . . . . . . . Walls Destroyed . | . . . . . . . . . . . . . . . . . . . . . . . . . . . . Machines Disabled . | . . . . . . . . . . . . . . . . . . . . . . . . . . . . Actions | -11 -10 -9 -9 -9 -8 -8 -7 -7 -7 -7 -6 -6 -6 -6 -6 -5 -5 -5 -5 -5 -4 -4 -4 -4 -4 -3 -3 --------- Run | Scr Mat Mat Min Exi Min Mat Fac Low Low Zio Pro Fac Low Low Dat Pro Fac Upp Upp War Pro Fac Ext Cet Arc Res Qua Total 11531 | 49 235 285 476 405 165 782 602 369 372 710 413 548 369 360 86 460 321 246 256 882 211 500 1015 196 163 473 582 Wait 616 | 1 13 34 4 . 2 175 18 22 4 1 38 42 . . . 11 12 4 . 26 5 75 51 3 26 38 11 Move 9517 | 39 176 167 456 397 155 507 526 314 351 688 337 426 351 334 80 413 274 231 252 740 191 342 767 157 86 297 463 Hop . | . . . . . . . . . . . . . . . . . . . . . . . . . . . . Pick Up 149 | 3 8 14 . 2 3 10 7 1 1 10 . 10 4 2 . 2 5 2 1 3 . 8 13 3 9 13 15 Fast Attach 79 | 4 1 6 . . . 7 . . . . 1 7 2 4 3 3 2 . 1 5 . 5 4 2 . 10 12 Attach 91 | 2 1 5 . . . 3 3 2 1 1 . 7 3 2 . 1 2 . . 1 . 8 6 2 4 24 13 Detach 18 | . 1 . . . . 1 . . . . . 1 1 1 . 1 . . . 1 . 1 4 1 . 1 4 Swap 128 | . 2 4 3 4 1 11 7 8 4 1 13 9 . 4 . 5 6 2 . 5 3 11 9 5 3 8 . Drop 125 | . 2 10 1 1 3 18 7 1 . 9 . 6 3 4 3 3 3 2 2 10 . 2 14 5 2 7 7 Fire 516 | . 31 45 12 . 1 41 33 21 11 . 22 33 5 9 . 21 15 5 . 5 10 33 19 18 33 71 22 Melee 84 | . . . . . . 9 1 . . . 2 6 . . . . 2 . . 11 2 14 . . . 4 33 Ram 1 | . . . . . . . . . . . . 1 . . . . . . . . . . . . . . . Kick 1 | . . . . . . . . . . . . . . . . . . . . . . 1 . . . . . Crush . | . . . . . . . . . . . . . . . . . . . . . . . . . . . . Escape Stasis 2 | . . . . . . . . . . . . . . . . . . . . . . . . . . . 2 Rewire 204 | . . . . 1 . . . . . . . . . . . . . . . 75 . . 128 . . . . Trap . | . . . . . . . . . . . . . . . . . . . . . . . . . . . . Miscellaneous . | . . . . . . . . . . . . . . . . . . . . . . . . . . . . Route ------- -11/Scrapyard -10/Materials -9/Materials (discovered 2 exits: [*Min] / [*Sto]) -9/Mines (discovered 2 exits: *Exi / *Zio) -9/Exiles -8/Mines -8/Materials (discovered 2 exits: *Fac x2) -7/Factory -7/Lower Caves -7/Lower Caves (discovered 2 exits: *Fac / *Zio) -7/Zion -6/Proximity Caves -6/Factory (discovered 3 exits: Fac / *Low x2) -6/Lower Caves -6/Lower Caves (discovered 2 exits: *Fac / *Dat) -6/Data Miner -5/Proximity Caves -5/Factory (discovered 3 exits: *Fac / *Upp x2) -5/Upper Caves -5/Upper Caves -5/Warlord -4/Proximity Caves -4/Factory (discovered 4 exits: *Upp x2 / *Ext x2) -4/Extension (discovered 3 exits: *Res x2 / *Cet) -4/Cetus -4/Archives (discovered 2 exits: *Res / [Hub]) -3/Research (discovered 3 exits: Arm / *Qua x2) -3/Quarantine (discovered 1 exit: [*Res]) History --------- Turn | Location | Event 35 | -11/Scrapyard | Discovered new exit (range 14) 71 | -11/Scrapyard | Entered Materials 317 | -10/Materials | Build established: Mutant 415 | -10/Materials | Discovered new exit (range 11) 470 | -10/Materials | Entered another Materials area 470 | -9/Materials | Evolved 2 slots: Propulsion x1, Utility x1 896 | -9/Materials | Discovered new exit (range 16) 912 | -9/Materials | Discovered new exit (range 7) 930 | -9/Materials | Entered Mines 953 | -9/Mines | Build established: Scavenger-Mutant 962 | -9/Mines | Met a Derelict bent on vengeance 1051 | -9/Mines | Deemed a non-threat by the Exiles lab entrance 1051 | -9/Mines | Discovered new exit (range 5) 1326 | -9/Mines | Build established: Mutant 1397 | -9/Mines | Learned location of 1 exit from Materials 1416 | -9/Mines | Found a hidden stash of uninstalled traps 1437 | -9/Mines | Learned Materials trap positions 1454 | -9/Mines | A Derelict revealed a hidden shortcut to a safe place 1703 | -9/Mines | Entered Exiles 1703 | -9/Exiles | Found Exiles lab destroyed 1868 | -9/Exiles | Opened EX-Vault 1887 | -9/Exiles | Found AWS/Gauss 2555 | -9/Exiles | Discovered new exit (range 12) 2579 | -9/Exiles | Entered Mines 2579 | -8/Mines | Accompanied by 1 ally 2908 | -8/Mines | Discovered new exit (range 9) 2927 | -8/Mines | Entered Materials 2927 | -8/Materials | Evolved 2 slots: Propulsion x1, Utility x1 2928 | -8/Materials | Identified exit to Factory 2929 | -8/Materials | Loaded intel: 16 trap records 3532 | -8/Materials | Discovered exit to Factory (range 15) 3784 | -8/Materials | Repaired Lgt. Armor Plating 3933 | -8/Materials | Garrison activated, responded to threat 4103 | -8/Materials | Entered Factory 4103 | -7/Factory | Evolved 2 slots: Utility x2 4391 | -7/Factory | Build established: Scavenger-Mutant 4637 | -7/Factory | Discovered new exit (range 6) 4668 | -7/Factory | Identified exit to Lower Caves 5081 | -7/Factory | Entered Lower Caves 5345 | -7/Lower Caves | Learned location of 1 exit from Factory 5551 | -7/Lower Caves | Learned location of 1 exit from Factory 5569 | -7/Lower Caves | Build established: Mutant 5583 | -7/Lower Caves | Discovered new exit (range 10) 5681 | -7/Lower Caves | Identified exit to Lower Caves 5683 | -7/Lower Caves | Entered another Lower Caves area 5742 | -7/Lower Caves | Discovered new exit (range 13) 5985 | -7/Lower Caves | Encountered a Warlord checkpoint 6079 | -7/Lower Caves | Attacked by a faux Warlord 6187 | -7/Lower Caves | Attracted the attention of an 0b10 checkpoint 6215 | -7/Lower Caves | Learned location of Zion (-7) 6239 | -7/Lower Caves | Learned Factory garrison access intel 6289 | -7/Lower Caves | Discovered new exit (range 5) 6299 | -7/Lower Caves | Identified exit to Zion 6320 | -7/Lower Caves | Entered Zion 6388 | -7/Zion | System corruption cleaned by Quarantine Array 6440 | -7/Zion | Found Prototype Special Weapon 6444 | -7/Zion | Found Prototype Special Weapon 6451 | -7/Zion | Found Prototype Special Weapon 6455 | -7/Zion | Found Prototype Special Weapon 6542 | -7/Zion | Discovered new exit (range 15) 6557 | -7/Zion | Learned 4 Factory zone layouts 6724 | -7/Zion | Learned location of 1 exit from Factory 6742 | -7/Zion | Build established: Scavenger-Mutant 6859 | -7/Zion | Given A8's code to call for help 7046 | -7/Zion | Learned 12 Factory zone layouts 7443 | -7/Zion | Identified exit to Proximity Caves 7445 | -7/Zion | Entered Proximity Caves 7445 | -6/Proximity Caves | Identified RU-N14's Throwing Claymores (x4) 7737 | -6/Proximity Caves | Build established: Mutant 8049 | -6/Proximity Caves | Discovered new exit (range 5) 8054 | -6/Proximity Caves | Identified exit to Factory 8056 | -6/Proximity Caves | Entered Factory 8056 | -6/Factory | Evolved 2 slots: Power x1, Weapon x1 8057 | -6/Factory | Identified exit to Factory 8057 | -6/Factory | Identified exit to Lower Caves 8059 | -6/Factory | Loaded intel: 4 garrison access locations 8467 | -6/Factory | Destroyed 11 combat bots 8469 | -6/Factory | Lost 5 parts (2p2u1w) 8568 | -6/Factory | Repaired Arm. Wheel 8721 | -6/Factory | Central database locked down 8907 | -6/Factory | Build established: Scavenger-Skirmisher 8936 | -6/Factory | Entered Lower Caves 9058 | -6/Lower Caves | Encountered a Warlord checkpoint 9237 | -6/Lower Caves | Build established: Skirmisher 9289 | -6/Lower Caves | Discovered new exit (range 13) 9542 | -6/Lower Caves | Identified exit to Lower Caves 9543 | -6/Lower Caves | Entered another Lower Caves area 9652 | -6/Lower Caves | Discovered exit to Factory (range 7) 10102 | -6/Lower Caves | Learned Factory interactive machine intel 10127 | -6/Lower Caves | Discovered new exit (range 7) 10135 | -6/Lower Caves | Identified exit to Data Miner 10137 | -6/Lower Caves | Entered Data Miner 10137 | -6/Data Miner | Discovered new exit (range 6) 10168 | -6/Data Miner | Met Data Miner 10198 | -6/Data Miner | Learned location of Section 7 (-3) 10198 | -6/Data Miner | Acquired the access code to Warlord's prototype stash 10219 | -6/Data Miner | Received God Mode back door access code from Data Miner 10263 | -6/Data Miner | Identified exit to Proximity Caves 10265 | -6/Data Miner | Entered Proximity Caves 10301 | -5/Proximity Caves | Build established: Mutant 10452 | -5/Proximity Caves | Escorted by Enhanced Grunt 10662 | -5/Proximity Caves | Spotted B-75 Beast 10696 | -5/Proximity Caves | Allies destroyed B-75 Beast 10758 | -5/Proximity Caves | Build established: Scavenger-Skirmisher 10869 | -5/Proximity Caves | Discovered exit to Factory (range 14) 10979 | -5/Proximity Caves | Entered Factory 10979 | -5/Factory | Accompanied by 1 ally 10979 | -5/Factory | Evolved 2 slots: Utility x2 10980 | -5/Factory | Loaded intel: 50 interactive machine locations 11156 | -5/Factory | Fabricated Impulse Thruster Array? 11158 | -5/Factory | Discovered new exit (range 14) 11158 | -5/Factory | Identified exit to Upper Caves 11239 | -5/Factory | Discovered new exit (range 9) 11457 | -5/Factory | Entered Upper Caves 11647 | -5/Upper Caves | Attracted the attention of an 0b10 checkpoint 11800 | -5/Upper Caves | Discovered new exit (range 14) 11817 | -5/Upper Caves | Identified exit to Upper Caves 11819 | -5/Upper Caves | Entered another Upper Caves area 11820 | -5/Upper Caves | Identified exit to Warlord 11942 | -5/Upper Caves | Build established: Scavenger-Gunner 12188 | -5/Upper Caves | Entered Warlord 12245 | -5/Warlord | System corruption cleaned by Quarantine Array 12276 | -5/Warlord | Discovered new exit (range 14) 12562 | -5/Warlord | Build established: Scavenger-Mutant 12656 | -5/Warlord | Learned Research security intel 12656 | -5/Warlord | Learned Armory terminal intel 12656 | -5/Warlord | Learned Armory recycling unit intel 12656 | -5/Warlord | Learned 4 Research zone layouts 12656 | -5/Warlord | Learned 4 Access zone layouts 12656 | -5/Warlord | Learned Research emergency access door positions 13135 | -5/Warlord | Warlord's base attacked by MAIN.C 13141 | -5/Warlord | Met Warlord 13162 | -5/Warlord | Opened Warlord's prototype stash 13169 | -5/Warlord | Found Prototype Device 13169 | -5/Warlord | Identified System Purifier 13177 | -5/Warlord | Found Prototype Device 13177 | -5/Warlord | Identified Exp. Cloaking Device 13192 | -5/Warlord | Found Prototype Reactor 13373 | -5/Warlord | Opened side exit 13417 | -5/Warlord | Identified exit to Proximity Caves 13418 | -5/Warlord | Entered Proximity Caves 13418 | -4/Proximity Caves | Accompanied by 2 allies 13434 | -4/Proximity Caves | Learned 4 Research zone layouts 13660 | -4/Proximity Caves | Learned Research terminal intel 13665 | -4/Proximity Caves | Identified exit to Factory 13737 | -4/Proximity Caves | Entered Factory 13737 | -4/Factory | Accompanied by 1 ally 13737 | -4/Factory | Evolved 2 slots: Utility x2 13738 | -4/Factory | Identified exit to Extension 13756 | -4/Factory | Discovered new exit (range 15) 13794 | -4/Factory | Identified exit to Upper Caves 13928 | -4/Factory | Fabricated Hvy. Armor Plating? 14003 | -4/Factory | Found Quantum Capacitor 14153 | -4/Factory | Incoming investigation squad redirected 14252 | -4/Factory | Repaired Broken Arm. Huge Wheel 14286 | -4/Factory | Identified Vortex Chain Reactor 14320 | -4/Factory | Lost 7 parts (1p4u2w) 14426 | -4/Factory | Garrison activated, responded to threat 14492 | -4/Factory | Entered Extension 14736 | -4/Extension | Rescued a captive Derelict 14737 | -4/Extension | Rescued a captive Derelict 15335 | -4/Extension | Spotted B-86 Titan 15340 | -4/Extension | Allies destroyed B-86 Titan 15351 | -4/Extension | Spotted B-86 Titan 15366 | -4/Extension | Allies destroyed B-86 Titan 15401 | -4/Extension | Discovered new exit (range 12) 15480 | -4/Extension | Rescued a captive Derelict 15720 | -4/Extension | Rescued a captive Derelict 15727 | -4/Extension | Destroyed 7 combat bots 15785 | -4/Extension | Rescued A7 16081 | -4/Extension | Build established: Scavenger-Skirmisher 16144 | -4/Extension | Discovered new exit (range 15) 16146 | -4/Extension | Discovered new exit (range 15) 16177 | -4/Extension | Identified exit to Cetus 16180 | -4/Extension | Entered Cetus 16180 | -4/Cetus | Accompanied by 3 allies (A7) 16185 | -4/Cetus | Acquired a Cetus Manufacturing Module code from A7 16213 | -4/Cetus | Spotted Cetus Guard 16213 | -4/Cetus | Spotted Cetus Guard 16214 | -4/Cetus | Spotted Cetus Guard 16222 | -4/Cetus | Allies destroyed Cetus Guard 16230 | -4/Cetus | Allies destroyed Cetus Guard 16238 | -4/Cetus | Destroyed Cetus Guard 16238 | -4/Cetus | Spotted Cetus Guard 16247 | -4/Cetus | Allies destroyed Cetus Guard 16295 | -4/Cetus | Cetus Manufacturing Module disabled 16368 | -4/Cetus | Failed to start Cetus Manufacturing Module 16385 | -4/Cetus | Escorted A7 to Cetus Mainframe 16498 | -4/Cetus | Build established: Scavenger-Tank 16553 | -4/Cetus | Discovered new exit (range 15) 16575 | -4/Cetus | Identified exit to Archives 16577 | -4/Cetus | Entered Archives 16577 | -4/Archives | Accompanied by 1 ally (A7) 16582 | -4/Archives | Received a hacking code to weaken MAIN.C 16782 | -4/Archives | Discovered new exit (range 14) 16830 | -4/Archives | Discovered new exit (range 19) 16855 | -4/Archives | Unable to access archive contents 16891 | -4/Archives | Identified exit to Research 16894 | -4/Archives | System corruption reached 10% 16895 | -4/Archives | Entered Research 16895 | -3/Research | Evolved 2 slots: Propulsion x1, Utility x1 16896 | -3/Research | Identified exit to Quarantine 16899 | -3/Research | Loaded intel: 24 terminal locations 17005 | -3/Research | Incoming investigation squad redirected 17058 | -3/Research | Identified exit to Armory 17097 | -3/Research | Found Prototype Processor 17253 | -3/Research | Identified Exp. Signal Interpreter 17308 | -3/Research | Destroyed 9 combat bots 17337 | -3/Research | Lost 8 parts (1p2n3u2w) 17411 | -3/Research | Lost 4 parts (1p1n1u1w) 17420 | -3/Research | System corruption reached 10% 17514 | -3/Research | Cargo convoy interrupted 17520 | -3/Research | Spotted Executioner 17532 | -3/Research | System corruption reached 30% 17536 | -3/Research | Destroyed Executioner 17544 | -3/Research | Garrison activated, responded to threat 17567 | -3/Research | Destroyed 11 combat bots 17573 | -3/Research | Lost 17 parts (1p3n7u6w) 17634 | -3/Research | Core integrity fell below 50% 17658 | -3/Research | Entered Quarantine 17694 | -3/Quarantine | Found Alien Artifact 17694 | -3/Quarantine | Identified Phase Armor 18057 | -3/Quarantine | Found Unknown Launcher 18057 | -3/Quarantine | Identified Fusion Bomb Launcher 18149 | -3/Quarantine | Met incapacitated Sigix Warrior 18149 | -3/Quarantine | Lockdown squad dispatched 18213 | -3/Quarantine | Build established: Hacker-Mutant 18236 | -3/Quarantine | Spotted Lightning 18269 | -3/Quarantine | Spotted Lightning 18270 | -3/Quarantine | Spotted Lightning 18315 | -3/Quarantine | Lost 3 parts (3u) 18338 | -3/Quarantine | Destroyed Lightning 18352 | -3/Quarantine | Destroyed Lightning 18374 | -3/Quarantine | Core integrity fell below 20% 18377 | -3/Quarantine | Lost 4 parts (1n3u) 18564 | -3/Quarantine | Scanned by Researcher 18568 | -3/Quarantine | Lost 6 parts (1n4u1w) 18590 | -3/Quarantine | Crushed by falling debris 18593 | -3/Quarantine | Discovered new exit (range 15) 18612 | -3/Quarantine | Destroyed by G-67 Veteran with Plasma Rifle Last Messages --------------- 18590_ Imp. Hacking Suite destroyed. 18590_ System corrupted by crushing effect (+4). 18590_ Arm. Wheel destroyed. 18590_ System corrupted by crushing effect (+1). 18590_ Authchip [Armor] destroyed. 18590_ System corrupted by crushing effect (+3). 18590_ Exp. Signal Interpreter destroyed. 18590_ System corrupted by crushing effect (+5). 18590_ Imp. System Shield destroyed. 18590_ System corrupted by crushing effect (+1). 18591_ Dropped Hcp. Storage Unit. 18591_ Dropped Mic. Antimatter Reactor. 18592_ Dropped Quantum Rifle. 18592_ Dropped Fusion Bomb Launcher. 18593_ The unstable cave ceiling collapses. 18593_ EXIT=FOUND 18600_ The unstable cave ceiling collapses. 18603_ System corrupted: Heat flow error (+282). 18603_ The unstable cave ceiling collapses. [Achievement: I Was Wrong!] Map ----- +----------------------------------------------------+ | ?????????????????????????????????????????????? | | # # ?????????????????????????????????????????? | | T"????????????????????????????????????????? | | # ## #########?##?????????????????????????????? | | # ? #?????????????????????????????? | | ## #?????????????????????????????? | | = # """"""" #?????????????????????????????? | | [ # " #?????????????????????????????? | | %!!= # """ """ #?????????????????????????????? | | # "!" " " ######????????????????????????? | | # # """ """ # #????????????????????????? | | # # # #????????????????????????? | | # $ ! ### ## < #????????????????????????? | | ] [[ #????????????????????????? | | T ]|*=%%! #????????????????????????? | | ]!/[ =[ #????????????????????????? | | ]#/ #????????????????????????? | | " " ##### #????????????????????????? | | " % #???# #???###??????????????????? | | "" " """ ##???# #?? g #??????????????????? | | """ """ #????# #??gg #??#???????????????? | | """ #????# ### ## # #????????????? | | """ #????# #????????????? | | """ #????# #????????????? | | """ # ^ #######????# """"""" #????????????? | | # ^^ # ??????????# @ """"""????????????????? | | ###### # ?????????# ! """""?????????????????? | | ????? # ????????# ???????????????? | | ????? # ????????# ??????????????? | | ???? # ????????#c ??????????????? | | ???? #? ?????????# ?????????????? | | ???#######??"?????????# """T""" +????????????? | | ??????????????????????+ #########?????????????? | | ??????????????????????# #?????????????????????? | | ??????????????????????# ^ #?????????????????????? | | ??????????????????????# #?????????????????????? | | ??????????????????????# #?????????????????????? | | ??????????????????????# #?????????????????????? | | ??????????????????????# #?????????????????????? | | ??????????????????????# ??????????????????????? | | ??????????????????????? ??????????????????????? | | ?????????????????????????????????????????????????? | | ?????????????????????????????????????????????????? | | ?????????????????????????????????????????????????? | | ?????????????????????????????????????????????????? | | ?????????????????????????????????????????????????? | | ?????????????????????????????????????????????????? | | ?????????????????????????????????????????????????? | | ?????????????????????????????????????????????????? | | ?????????????????????????????????????????????????? | +----------------------------------------------------+ Best States ------------- Heat Dissipation 134 Coolant Potential 65 Energy Generation 55 Energy Capacity 1050 Matter Stores 300 Matter Capacity 300 Sight Range 16 Robot Scan Range 15 Terrain Scan Range 20 Terrain Scan Density 210 Jamming Range 14 Armor Coverage 2100 Resistance: KI 25 Propulsion Shielding 66 Utility Shielding 66 Weapon Shielding 66 Evasion (%) 50 Targeting Accuracy 8 Recoil Reduction 5 Offensive Hacking 24 Defensive Hacking 24 Authchip Count 1 Item Schematics ----------------- Hacking Suite | -8/Materials | Scanalyzed Hvy. Armor Plating | -6/Factory | Hacked Combat Drone Bay | -6/Data Miner | Free Lgt. Regenerative Plating | -6/Data Miner | Free Enh. Flexi-carbon Leg | -6/Data Miner | Free Imp. Thermal Defense Suite | -6/Data Miner | Free Neutron Cannon | -6/Data Miner | Free Adv. Medium Treads | -6/Data Miner | Free Adv. Actuator Array | -6/Data Miner | Free Phase Gun | -6/Data Miner | Free HERF Cannon | -6/Data Miner | Free Biometal Leg | -5/Factory | Hacked Biometal Heavy Treads | -3/Quarantine | Hacked Robot Schematics ------------------ I-47 Archangel | -6/Data Miner | Free S-27 Virus | -6/Data Miner | Free B-48 Gladiator | -6/Data Miner | Free B-60 Warrior | -6/Data Miner | Free P-70 Sage | -6/Data Miner | Free G-50 Soldier | -6/Data Miner | Free Fabricated ------------ Impulse Thruster Array | x1 | -5/Factory | Preloaded Hvy. Armor Plating | x1 | -4/Factory Alien Tech Used ----------------- Phase Armor Achievements -------------- I Was Wrong! Challenges ------------ None Game ------ Seed PrecisionHelicalMediator Manual? 0 Play Time 03:03:55 Cumulative 166.1 hours Start 2022.08.29 @ 15:52:38 End 2022.08.29 @ 22:52:26 Sessions 3 Manual Loads 0 Difficulty Rogue Special Mode None Game No. 66 Rogue 66 Adventurer 0 Explorer 0 Win Type - Total 5 Types 3/0/1/1/0/0/0/0/0 Lore% 75 Gallery% 70 Achievement% 60 Wizard Run 0 Options --------- ASCII 0 Keyboard 1 Movement Numpad Keybinds 0 Fullscreen 2 Font 18/X11 Map View 76x50 Tactical HUD 1 Map Filters NONE Filters NONE Steam 1 RUN: c6fd63bb-a251-4053-a77d-aaff09f8b51e